bitfinex/quotes_ETHUSD_20220308
["timestamp","ask_amount","ask_price","bid_price","bid_amount"]
[1646763241151,0.13819997,2620.7,2620.4,0.70459264]
[1646763241352,11.61541925,2621.2,2620.4,0.70459264]
[1646763241353,0.9313033,2621.3,2620.4,1.00459264]
[1646763241559,1.50394147,2621.5,2620.4,1.38619264]
[1646763241560,0.9313033,2621.5,2620.4,1.38619264]
[1646763241749,0.9313033,2621.6,2620.4,1.00459264]
[1646763241955,0.9313033,2621.7,2620.5,3.468]
[1646763242151,0.9313033,2621.8,2620.5,3.468]
[1646763242352,7.36,2622.2,2620.5,3.468]
[1646763242353,0.9313033,2622.0,2621.7,0.75059801]
[1646763242650,0.9313033,2622.0,2620.7,0.95402]
[1646763242651,0.33048599,2621.5,2621.0,1.90807]
[1646763242851,0.33048599,2621.5,2621.3,0.3]
[1646763243251,0.33048599,2621.5,2620.5,2.8620428]
[1646763243553,0.33048599,2621.5,2621.1,0.90364331]
[1646763243749,0.33048599,2621.5,2620.8,2.8626058]
[1646763243950,0.33048599,2621.5,2620.6,0.3]
[1646763243951,0.00084701,2621.1,2620.9,0.3]
[1646763244210,0.00084701,2621.1,2620.6,0.3]
[1646763244413,0.00084701,2621.1,2620.1,1.2441]
[1646763244610,0.00084701,2621.1,2619.7,10.4082822]
[1646763244810,0.00084701,2621.1,2619.8,3.5]
[1646763245011,0.00084701,2621.1,2619.7,5.2392822]
[1646763245012,0.00084701,2621.1,2620.6,0.78985053]
[1646763245409,0.95456,2621.2,2620.6,0.78985053]
[1646763245410,0.00084701,2620.7,2620.6,0.78985053]
[1646763245810,0.00084701,2620.7,2620.6,1.08985053]
[1646763246611,0.00281773,2620.8,2620.6,1.08985053]
[1646763247711,0.00563546,2620.8,2620.6,1.08985053]
[1646763247942,0.00281773,2620.8,2620.6,1.08985053]
[1646763248853,0.00500452,2620.8,2620.6,1.08985053]
[1646763249047,0.00218679,2620.8,2620.6,1.08985053]
[1646763249748,0.01962994,2620.7,2620.6,1.08985053]
[1646763250351,2.22010758,2621.5,2620.6,1.08985053]
[1646763250749,0.95452,2621.3,2620.6,1.08985053]
[1646763251349,0.95452,2621.3,2620.6,0.3]
[1646763251606,0.95452,2621.3,2620.1,3.8634396]
[1646763251798,0.95452,2621.3,2620.2,0.3816]
[1646763252202,0.95452,2621.3,2620.1,4.8450396]
[1646763252400,0.95452,2621.3,2620.5,0.84405647]
[1646763252602,0.95452,2621.3,2620.1,0.6]
[1646763252802,0.95452,2621.3,2619.8,1.90903]
[1646763253002,0.95452,2621.3,2619.6,1.9092]
[1646763253003,3.5,2621.2,2619.6,1.9092]
[1646763253203,0.95479,2620.8,2619.6,0.3816]
[1646763253603,0.95479,2620.8,2619.5,0.80480218]
[1646763253905,3.5,2620.7,2619.3,2.9795]
[1646763254203,0.95491,2620.4,2618.9,1.2441]
[1646763254402,3.5,2620.3,2618.6,1.1756]
[1646763254806,4.5,2620.3,2618.6,1.1756]
[1646763255006,3.5,2620.3,2618.8,0.69504724]
[1646763255208,4.5,2620.3,2618.8,0.69504724]
[1646763255446,0.95508,2619.9,2618.8,0.69504724]
[1646763255848,2.21016,2620.0,2618.8,0.69504724]
[1646763255849,0.15599107,2620.0,2618.8,0.69504724]
[1646763256047,1.0,2620.3,2618.8,2.60479724]
[1646763256248,0.21276625,2620.4,2618.8,2.98639724]
[1646763256849,0.95492,2620.2,2618.9,1.33652]
[1646763257051,0.95492,2620.2,2618.9,0.3]
[1646763257252,0.95492,2620.2,2618.8,3.20479724]
[1646763257452,3.5,2620.1,2618.8,3.20479724]
[1646763257649,3.5,2620.1,2618.8,2.50975]
[1646763257850,4.5,2620.1,2618.8,2.50975]
[1646763258050,1.0,2620.1,2618.8,2.50975]
[1646763258252,0.15624024,2620.3,2618.8,2.50975]
[1646763258452,0.15624024,2620.3,2618.8,0.6]
[1646763258655,0.95509,2619.8,2618.8,0.6]
[1646763258853,0.95509,2619.8,2618.6,0.85488623]
[1646763259302,0.95509,2619.8,2618.7,0.95509]
[1646763260503,0.95509,2619.8,2618.7,1.25509]
[1646763263748,0.95509,2619.8,2618.9,0.9551]
[1646763264048,0.19059676,2619.9,2618.8,3.4651326]
[1646763264248,2.92947114,2620.3,2618.8,3.4151326]
[1646763264647,1.92947114,2620.3,2618.8,3.4151326]
[1646763264849,0.01934285,2619.7,2618.8,0.3]
[1646763265152,0.95527,2619.5,2618.6,0.85488623]
[1646763266898,0.01934285,2619.7,2618.8,0.95515]
[1646763267703,0.01934285,2619.7,2618.8,1.25515]
[1646763267899,0.01934285,2619.7,2618.5,4.1203314]
[1646763267900,0.01934285,2619.7,2618.5,1.91027]
[1646763268101,1.09332997,2619.6,2618.3,1.91042]
[1646763268300,1.09332997,2619.6,2617.9,2.86555]
[1646763268500,0.468,2619.5,2617.8,0.01774846]
[1646763268699,0.468,2619.5,2617.8,0.26774846]
[1646763269301,0.95554,2619.0,2618.1,0.95544]
[1646763269704,0.95554,2619.0,2618.2,3.5]
[1646763269902,0.13819997,2619.6,2618.2,0.3]
[1646763270102,0.13819997,2619.6,2618.2,3.5]
[1646763270366,0.13819997,2619.6,2618.3,1.33689]
[1646763270367,0.01925368,2619.4,2618.3,1.33689]
[1646763270556,0.01925368,2619.4,2618.5,12.0116]
[1646763270755,0.01925368,2619.4,2619.3,0.82614515]
[1646763271155,0.01925368,2619.4,2618.7,3.3888]
[1646763271357,0.01925368,2619.4,2618.7,0.51278059]
[1646763271562,0.01925368,2619.4,2618.3,0.95534]
[1646763271758,0.01925368,2619.4,2618.2,2.4449]
[1646763272157,0.01925368,2619.4,2618.2,3.28002346]
[1646763272357,0.01925368,2619.4,2617.8,0.01775299]
[1646763272960,0.01925368,2619.4,2618.1,1.91073]
[1646763273358,0.97447368,2619.4,2618.1,1.91073]
[1646763273557,0.97447368,2619.4,2618.2,0.9202887]
[1646763273957,3.5,2619.3,2618.1,1.91073]
[1646763274195,3.5,2619.3,2618.4,0.95532]
[1646763274393,4.5,2619.3,2618.2,0.3]
[1646763274600,1.95055698,2619.4,2618.2,0.3]
[1646763274798,3.5,2619.3,2618.2,0.3]
[1646763275202,1.02094188,2619.3,2618.2,0.3]
[1646763275405,0.02094188,2619.3,2618.2,0.55]
[1646763275608,0.02094188,2619.3,2618.5,1.91003]
[1646763275802,0.02094188,2619.3,2618.6,0.3]
[1646763276401,0.02094188,2619.3,2618.8,0.72621694]
[1646763276602,0.02094188,2619.3,2618.7,0.95502]
[1646763277603,0.02094188,2619.3,2618.8,0.87993613]
[1646763277858,0.02094188,2619.3,2618.9,1.91]
[1646763278251,0.02094188,2619.3,2618.9,2.21]
[1646763283318,0.95476,2620.7,2620.1,1.55476]
[1646763283717,0.9313033,2620.6,2619.6,2.15968]
[1646763283918,0.9313033,2620.5,2619.6,2.15968]
[1646763284218,0.95489,2620.4,2619.9,0.95482]
[1646763284421,1.8861933,2620.4,2619.9,0.95482]
[1646763284620,0.9313033,2620.2,2619.9,0.95482]
[1646763284918,1.08975668,2620.2,2619.6,1.90968]
[1646763285121,0.9313033,2620.1,2619.6,1.90968]
[1646763285566,0.9313033,2620.0,2619.6,1.90968]
[1646763285776,0.9313033,2620.0,2618.3,7.36]
[1646763285777,0.9313033,2619.8,2618.3,7.36]
[1646763285976,0.9313033,2619.6,2618.3,7.36]
[1646763286172,0.9313033,2619.5,2618.2,5.6806]
[1646763286371,0.9313033,2619.4,2618.2,5.6806]
[1646763286571,0.9313033,2619.4,2618.2,7.59131]
[1646763286773,0.9313033,2619.4,2617.8,2.4362]
[1646763286774,0.87199455,2619.3,2617.8,2.4362]
[1646763286983,4.2656433,2619.3,2617.8,2.4362]
[1646763287472,0.9313033,2619.2,2617.8,2.4362]
[1646763287773,1.91108,2618.9,2617.8,2.7362]
[1646763287974,0.95554,2618.8,2618.0,1.91089]
[1646763288172,0.95554,2618.8,2618.1,0.3]
[1646763290515,0.95554,2618.8,2617.9,5.0812238]
[1646763290722,0.9313033,2618.6,2616.7,7.36]
[1646763290928,0.9313033,2618.6,2617.1,2.4081]
[1646763290929,0.95567,2618.2,2617.1,2.4081]
[1646763291125,0.95567,2618.2,2617.8,0.01944978]
[1646763291126,3.968,2618.1,2617.8,0.01944978]
[1646763291321,0.468,2618.1,2617.8,0.01944978]
[1646763291521,0.95567,2618.2,2617.8,0.01944978]
[1646763292120,0.95567,2618.2,2617.7,0.95569]
[1646763292121,0.95567,2618.2,2616.6,11.18255]
[1646763292319,0.95567,2618.2,2617.6,0.3]
[1646763292519,0.95567,2618.2,2617.3,1.91145]
[1646763292718,4.92367,2618.2,2617.3,1.91145]
[1646763292970,2.29181876,2618.2,2616.9,0.95599]
[1646763293170,3.5,2618.1,2616.9,0.95599]
[1646763293468,0.95599,2617.8,2616.9,0.95599]
[1646763293674,3.968,2617.7,2616.6,3.82255]
[1646763293870,3.968,2617.7,2616.1,2.8872]
[1646763293871,0.9563302,2617.4,2616.1,2.8872]
[1646763294069,0.9563302,2617.4,2616.1,0.79815996]
[1646763294070,0.468,2617.3,2616.1,0.79815996]
[1646763294270,0.95629,2616.9,2615.7,5.7141]
[1646763294468,0.95629,2616.9,2615.6,2.4135]
[1646763294672,0.95629,2616.9,2616.6,0.01879708]
[1646763294870,0.95629,2616.9,2616.6,0.01248108]
[1646763295870,0.95629,2616.9,2615.9,1.85451512]
[1646763296069,0.95629,2616.9,2615.6,3.36978]
[1646763296275,0.95629,2616.9,2616.0,0.57971289]
[1646763296473,0.95629,2616.9,2616.0,0.27971289]
[1646763297116,0.95629,2616.9,2616.1,0.95621]
[1646763297411,0.95629,2616.9,2616.2,0.3]
[1646763298213,0.95629,2616.9,2616.1,0.3]
[1646763298614,0.95629,2616.9,2616.0,0.27971289]
[1646763299413,0.95629,2616.9,2616.4,0.00471648]
[1646763300016,0.95629,2616.9,2616.4,0.00553418]
[1646763300017,1.42429,2616.9,2616.4,0.00553418]
[1646763300672,1.09413997,2617.2,2616.5,0.00476486]
[1646763300871,1.09413997,2617.2,2616.7,0.7941559]
[1646763301170,0.00253149,2617.5,2616.7,0.7941559]
[1646763301475,0.15897052,2618.2,2616.7,0.7941559]
[1646763301476,0.42351623,2618.4,2616.9,6.0]
[1646763301768,0.00253178,2617.5,2617.2,0.95564]
[1646763302078,0.00253178,2617.5,2617.3,0.3]
[1646763302268,0.00253178,2617.5,2617.1,2.21128]
[1646763302467,0.00253178,2617.5,2617.2,0.3]
[1646763303066,2.86742,2618.3,2617.1,2.21128]
[1646763303268,0.95584,2617.5,2617.1,0.3]
[1646763303466,0.95584,2617.5,2616.4,4.8383877]
[1646763303667,0.95584,2617.5,2616.7,0.3]
[1646763303867,0.95584,2617.5,2616.4,0.0008177]
[1646763304135,0.95584,2617.5,2616.5,0.3816]
[1646763304323,0.00230788,2617.6,2616.9,0.00431577]
[1646763304521,0.00230788,2617.6,2616.9,0.38591577]
[1646763304921,0.00230788,2617.6,2617.3,0.00082091]
[1646763305323,0.00461572,2617.6,2617.4,0.72684148]
[1646763305525,0.00230784,2617.6,2617.4,1.68252148]
[1646763305724,0.00230784,2617.6,2617.4,1.98252148]
[1646763306630,0.0046159,2617.6,2617.4,1.25568]
[1646763306827,0.00230806,2617.6,2617.4,1.25568]
[1646763307427,0.00230806,2617.6,2617.4,0.3]
[1646763307861,0.00230806,2617.6,2617.4,1.25561]
[1646763308060,0.9556,2618.1,2617.4,1.63721]
[1646763308262,1.91102,2618.6,2617.7,0.95549]
[1646763308664,0.9313033,2619.0,2617.7,0.3]
[1646763308865,0.9313033,2619.0,2617.9,0.95543]
[1646763309066,0.95541,2618.7,2617.9,0.95543]
[1646763309267,0.98843154,2618.4,2617.8,0.3]
[1646763309467,0.98843154,2618.4,2618.0,0.3816]
[1646763310067,0.98843154,2618.4,2617.9,2.21085]
[1646763310267,0.98843154,2618.4,2618.2,0.78463451]
[1646763310668,0.98843154,2618.4,2618.2,1.08463451]
[1646763311069,0.98843154,2618.4,2618.3,0.3816]
[1646763311269,0.98843154,2618.4,2618.3,0.6816]
[1646763311473,0.00287274,2618.4,2618.3,0.6816]
[1646763311725,1.38612925,2619.7,2618.5,0.3316]
[1646763311726,0.9313033,2619.7,2618.5,0.3316]
[1646763311929,1.38612925,2619.9,2618.5,4.1316]
[1646763311930,0.9313033,2619.9,2618.5,4.1316]
[1646763312222,0.9313033,2620.0,2619.1,1.88647]
[1646763312522,0.01148213,2620.4,2619.4,0.99723163]
[1646763312719,0.01148213,2620.4,2620.3,0.78090231]
[1646763312922,0.9313033,2621.0,2620.3,0.78090231]
[1646763313125,1.00020257,2621.7,2620.4,1.90873]
[1646763313126,0.9313033,2621.1,2620.4,1.90873]
[1646763313322,0.9313033,2621.1,2620.4,2.24033]
[1646763313518,0.9313033,2621.1,2620.5,0.9543503]
[1646763313821,0.9313033,2621.1,2620.6,0.3]
[1646763314019,0.9313033,2621.1,2620.6,0.17065519]
[1646763314218,0.9313033,2621.2,2620.5,1.90874]
[1646763314427,4.4313033,2621.1,2620.4,0.3]
[1646763314620,0.9313033,2621.0,2620.4,2.20922]
[1646763314825,0.9313033,2621.0,2620.4,1.90922]
[1646763315024,0.9313033,2620.9,2620.3,0.3]
[1646763315223,0.9313033,2620.9,2620.1,2.50925]
[1646763315676,0.9313033,2620.9,2619.5,8.70578]
[1646763315677,0.9313033,2620.7,2619.5,8.70578]
[1646763315875,4.4313033,2620.6,2619.5,2.86408]
[1646763316077,0.95486,2620.3,2619.5,2.86408]
[1646763316276,0.95486,2620.3,2619.6,1.90957]
[1646763317084,0.95486,2620.3,2619.6,2.20957]
[1646763317299,2.8410233,2620.5,2620.0,1.90949]
[1646763317478,0.00286556,2620.1,2620.0,1.90949]
[1646763317677,0.00286556,2620.1,2620.0,2.50949]
[1646763318480,0.01146052,2620.5,2620.0,2.50949]
[1646763318680,0.01146052,2620.5,2620.1,2.86349]
[1646763318882,5.0,2620.9,2620.1,3.16349]
[1646763318883,0.00286556,2620.2,2620.1,3.16349]
[1646763319139,0.01146052,2620.6,2620.3,12.0116]
[1646763319332,0.01146052,2620.6,2620.4,12.88330418]
[1646763319530,0.01146052,2620.6,2620.5,0.3816]
[1646763319734,5.0,2620.9,2620.5,12.3116]
[1646763319931,5.0,2620.9,2620.6,0.3816]
[1646763320733,5.0,2620.9,2620.4,1.90872]
[1646763320953,0.01239258,2620.8,2620.4,1.90872]
[1646763321134,5.00285123,2620.9,2620.4,0.95459]
[1646763321334,5.00285123,2620.9,2620.4,1.90915]
[1646763322133,5.00285123,2620.9,2620.4,0.95459]
[1646763322338,0.00285123,2620.8,2620.4,0.3]
[1646763322534,0.00285123,2620.8,2620.2,2.20919]
[1646763322734,0.00285123,2620.8,2620.3,0.95459]
[1646763322967,0.00285123,2620.8,2619.5,2.86386]
[1646763322968,0.3816,2620.7,2619.5,2.86386]
[1646763323183,0.3816,2620.6,2619.5,2.86386]
[1646763323372,3.5,2620.5,2619.4,1.9097]
[1646763323571,3.5,2620.5,2618.8,1.1811]
[1646763323572,1.3129033,2620.4,2618.8,1.1811]
[1646763323773,1.3129033,2620.4,2618.4,1.1578]
[1646763323774,0.3816,2620.2,2618.4,1.1578]
[1646763323970,0.3816,2619.7,2618.4,1.1578]
[1646763324171,3.5,2619.6,2618.5,1.91033]
[1646763324370,0.80515581,2619.7,2618.5,1.91033]
[1646763324571,2.866,2619.7,2618.5,1.91033]
[1646763324770,2.866,2619.7,2618.5,1.92496269]
[1646763325170,3.2476,2619.7,2618.5,1.92496269]
[1646763325369,3.2476,2619.7,2618.5,2.88021269]
[1646763325370,0.95528,2619.2,2618.5,2.88021269]
[1646763325569,0.95528,2619.2,2618.6,0.3]
[1646763325968,0.95528,2619.2,2618.6,0.31804786]
[1646763326171,0.95528,2619.2,2618.6,0.01804786]
[1646763326812,3.866,2619.7,2618.6,0.01804786]
[1646763326813,0.95517,2619.4,2618.6,0.01804786]
[1646763327018,0.95517,2619.4,2618.8,0.72266765]
[1646763327626,0.95517,2619.4,2618.8,1.02266765]
[1646763327819,0.95517,2619.4,2618.8,0.3]
[1646763328018,0.95517,2619.4,2618.7,1.55516]
[1646763328220,0.95517,2619.4,2618.7,1.25516]
[1646763328420,0.95517,2619.4,2618.7,0.3]
[1646763328721,0.95517,2619.4,2618.6,0.31804115]
[1646763329119,0.95517,2619.4,2618.6,0.01804115]
[1646763329724,0.95517,2619.4,2618.5,1.92837171]
[1646763330023,0.95517,2619.4,2618.5,0.01804171]
[1646763330965,0.95517,2619.4,2618.4,1.92773715]
[1646763331166,0.95517,2619.4,2618.7,0.95525]
[1646763331566,0.95517,2619.4,2618.7,1.25525]
[1646763331967,0.95517,2619.4,2618.8,1.91043]
[1646763332368,0.95517,2619.4,2618.8,2.21043]
[1646763335113,0.90517,2619.4,2618.8,2.21043]
[1646763335716,0.90517,2619.4,2618.8,1.91043]
[1646763335919,0.90517,2619.4,2618.6,0.01751937]
[1646763336920,0.90517,2619.4,2618.5,0.01751993]
[1646763337119,0.90517,2619.4,2618.5,0.31751993]
[1646763337324,0.90517,2619.4,2618.7,0.95539]
[1646763337523,0.95512,2619.6,2618.9,0.85036047]
[1646763337721,0.95512,2619.6,2619.0,2.21024]
[1646763338372,0.95512,2619.6,2619.0,1.91024]
[1646763338568,0.95512,2619.6,2619.0,2.21024]
[1646763339174,0.95512,2619.6,2619.0,1.96024]
[1646763339374,0.95512,2619.6,2619.0,1.91024]
[1646763340175,0.95503,2619.9,2619.0,1.91024]
[1646763340581,2.8413633,2620.2,2619.7,0.83285561]
[1646763340582,0.9313033,2620.2,2619.7,0.83285561]
[1646763340780,1.76772925,2620.6,2619.6,2.20977]
[1646763340781,0.9313033,2620.4,2619.6,2.20977]
[1646763341176,0.9313033,2620.4,2619.7,0.3]
[1646763341376,0.9313033,2620.5,2619.7,0.3]
[1646763341617,0.95771068,2620.3,2619.7,0.3]
[1646763341817,0.95771068,2620.3,2619.9,0.95487]
[1646763342026,0.00284068,2620.3,2620.0,3.5]
[1646763342217,0.00284068,2620.3,2619.9,1.25487]
[1646763342420,0.00284068,2620.3,2619.9,1.55487]
[1646763342617,0.9313033,2620.8,2619.9,1.93647]
[1646763342818,0.9313033,2620.8,2620.5,0.69123548]
[1646763343126,5.0,2620.9,2620.5,0.69123548]
[1646763343319,5.0,2620.9,2620.5,0.99123548]
[1646763343517,5.0,2620.9,2620.5,0.3]
[1646763343719,5.0,2620.9,2620.4,0.6]
[1646763343922,0.25786407,2620.2,2620.1,2.2092]
[1646763344118,0.25786407,2620.2,2620.1,2.5092]
[1646763344720,0.25786407,2620.2,2620.1,3.18792039]
[1646763346263,0.25786407,2620.2,2620.1,2.5092]
[1646763346465,0.25786407,2620.2,2620.1,2.4692]
[1646763347269,0.00264939,2620.3,2620.1,8.9237325]
[1646763347470,0.00264939,2620.3,2620.1,9.8782425]
[1646763347672,0.01059617,2620.7,2620.3,6.0]
[1646763347971,0.01059617,2620.7,2620.5,12.0116]
[1646763347972,0.02119242,2620.7,2620.5,12.0116]
[1646763348171,1.38612925,2621.4,2620.6,4.5]
[1646763348172,0.9313033,2621.4,2620.6,4.5]
[1646763348374,0.9313033,2621.4,2620.6,2.20847]
[1646763348571,0.9313033,2621.4,2620.6,3.20847]
[1646763348770,0.9313033,2621.3,2620.6,1.25424]
[1646763348973,0.9313033,2621.1,2620.6,1.25424]
[1646763349219,0.3818,2621.7,2620.6,0.95424]
[1646763349220,0.9313033,2621.0,2620.6,0.95424]
[1646763349413,0.9313033,2620.9,2620.6,0.95424]
[1646763349815,0.9313033,2621.0,2620.6,0.95424]
[1646763350016,0.9313033,2621.1,2620.7,0.3]
[1646763350925,0.9313033,2621.1,2620.2,18.48826932]
[1646763351117,0.9313033,2621.1,2620.3,0.95446]
[1646763351320,0.9313033,2621.1,2620.3,4.83606]
[1646763351520,0.00280116,2621.0,2620.3,16.46606]
[1646763352120,0.00280116,2621.0,2620.6,11.63]
[1646763352323,0.00280116,2621.0,2620.7,12.0116]
[1646763352521,0.00280116,2621.0,2620.7,0.6816]
[1646763352720,0.00280111,2620.8,2620.7,13.3116]
[1646763352970,0.00280111,2620.8,2620.7,12.3116]
[1646763353177,0.00280111,2620.8,2620.7,1.6816]
[1646763353578,0.00280111,2620.8,2620.7,0.6816]
[1646763353777,0.00280111,2620.8,2620.3,1.0]
[1646763354077,0.9313033,2621.1,2620.3,1.3]
[1646763354274,0.9313033,2621.1,2620.2,0.76792932]
[1646763354479,1.38612925,2621.3,2620.2,0.76792932]
[1646763354480,0.9313033,2621.0,2620.2,0.76792932]
[1646763354680,0.9313033,2621.0,2620.2,1.14952932]
[1646763354885,0.9313033,2621.1,2620.2,13.73397932]
[1646763355081,0.00280116,2620.8,2620.2,13.73397932]
[1646763355281,0.00280116,2620.8,2620.2,2.10397932]
[1646763355483,0.00280116,2620.8,2620.2,1.44952932]
[1646763355686,0.00280116,2620.8,2620.2,1.06792932]
[1646763356086,0.00280116,2620.8,2620.2,13.07952932]
[1646763356285,0.00280116,2620.8,2620.3,3.8816]
[1646763356286,0.00560211,2620.8,2620.3,3.8816]
[1646763356487,0.00560211,2620.8,2620.6,12.0116]
[1646763356488,0.00280095,2620.8,2620.6,12.0116]
[1646763356915,0.00280095,2620.8,2620.7,12.0116]
[1646763357116,0.88410425,2621.3,2620.8,17.13]
[1646763357315,0.01120099,2621.5,2620.8,18.43]
[1646763357516,0.01456154,2621.5,2620.8,18.8116]
[1646763357717,0.00336055,2621.5,2621.2,0.82974746]
[1646763357918,0.00336055,2621.5,2620.8,6.8]
[1646763358721,2.34053925,2621.6,2620.8,6.8]
[1646763358918,2.34053925,2621.6,2620.8,1.3]
[1646763359119,2.34053925,2621.6,2620.8,0.3]
[1646763359323,1.38612925,2621.5,2620.7,0.3]
[1646763359519,1.38612925,2621.5,2620.6,1.6]
[1646763359820,1.38612925,2621.4,2620.6,0.3]
[1646763360020,1.38612925,2621.5,2620.6,0.3]
[1646763360220,1.38926611,2621.7,2620.5,12.0116]
[1646763360473,0.00313686,2621.7,2620.7,12.0116]
[1646763360673,0.00313686,2621.7,2620.9,12.0116]
[1646763360870,0.00313686,2621.7,2621.1,12.0116]
[1646763361071,0.00313686,2621.7,2621.2,15.13]
[1646763361283,3.686e-05,2621.7,2621.3,12.0116]
[1646763361479,2.821e-05,2621.6,2621.5,12.0116]
[1646763361676,2.821e-05,2621.6,2621.5,15.9796]
[1646763361874,2.821e-05,2621.6,2621.5,13.7796]
[1646763362073,2.821e-05,2621.6,2621.5,13.398]
[1646763362277,1.38612925,2622.3,2621.5,1.247327]
[1646763362473,1.38612925,2622.4,2621.6,0.95393]
[1646763363276,1.38612925,2622.4,2621.6,12.96553]
[1646763363475,1.38612925,2622.6,2621.6,16.46553]
[1646763363675,0.00268135,2622.5,2621.6,1.95393]
[1646763363881,0.00268135,2622.5,2621.6,0.95393]
[1646763364121,0.00268135,2622.5,2622.4,12.0116]
[1646763364419,0.00268135,2622.5,2622.3,2.42923376]
[1646763364619,0.00268135,2622.5,2622.3,1.17559376]
[1646763365017,0.00268135,2622.6,2622.3,1.17559376]
[1646763365420,0.00268135,2622.6,2622.4,12.58365]
[1646763365721,0.00268135,2622.6,2622.4,12.88365]
[1646763366124,0.0022088,2622.6,2622.4,12.88365]
[1646763366322,0.0022088,2622.6,2622.4,1.25365]
[1646763366922,0.0022088,2622.6,2622.4,0.95365]
[1646763367126,0.42253127,2622.3,2622.1,1.90727]
[1646763367324,0.42253127,2622.3,2621.9,0.95395]
[1646763368167,0.42253127,2622.3,2622.0,0.75430829]
[1646763368566,0.00243973,2622.2,2622.0,0.75430829]
[1646763368768,0.00243973,2622.2,2622.0,6.46172829]
[1646763369272,0.00975746,2622.6,2622.3,11.63]
[1646763369474,0.00975746,2622.6,2622.5,11.63]
[1646763369674,0.00975746,2622.6,2622.5,15.43]
[1646763369872,0.00975746,2622.6,2622.5,16.43]
[1646763370071,0.00975746,2622.6,2622.5,1.3]
[1646763370272,0.00975746,2622.6,2622.5,0.3]
[1646763370477,0.00975746,2622.6,2622.4,0.3]
[1646763370874,0.00975746,2622.6,2622.1,5.9668]
[1646763371079,0.0026563,2623.1,2622.0,0.3]
[1646763371277,0.95393,2622.7,2621.8,2.3551]
[1646763371623,0.95393,2622.7,2621.7,2.86102]
[1646763372224,0.95393,2622.7,2621.6,0.95398]
[1646763372624,0.95393,2622.7,2621.6,1.25398]
[1646763372825,4.45393,2622.7,2621.6,1.25398]
[1646763373025,0.95393,2622.7,2621.6,0.3]
[1646763373224,4.84806591,2622.7,2621.4,1.90805]
[1646763373425,0.15906777,2622.6,2621.1,1.90821]
[1646763373628,1.33576,2622.2,2621.1,1.90821]
[1646763373930,0.3816,2622.1,2620.6,2.8563]
[1646763374126,0.3816,2622.1,2620.6,4.76498]
[1646763374332,4.3496,2622.1,2620.6,2.8563]
[1646763374824,4.3496,2622.1,2621.3,0.0048302]
[1646763374825,3.968,2622.1,2621.3,0.0048302]
[1646763375024,0.95445,2621.9,2621.3,0.0048302]
[1646763375228,0.95436,2621.7,2621.3,0.0048302]
[1646763375971,0.95436,2621.7,2621.3,0.00483021]
[1646763376172,0.8496,2622.1,2621.3,0.00483021]
[1646763376173,1.90848,2622.1,2621.3,0.00483021]
[1646763377077,1.90848,2622.1,2621.3,0.00966036]
[1646763377274,1.90848,2622.1,2621.3,0.00483015]
[1646763378274,1.90848,2622.1,2621.3,0.00952864]
[1646763378275,2.86288,2622.1,2621.3,0.00952864]
[1646763378475,0.9544,2621.8,2621.3,0.00469849]
[1646763378675,3.5,2621.7,2621.3,0.00469849]
[1646763379116,1.90917,2621.6,2621.3,0.00469849]
[1646763379524,1.90917,2621.6,2621.3,0.00900424]
[1646763379720,1.90917,2621.6,2621.3,0.00430575]
[1646763380321,2.863703,2621.6,2621.3,0.00430575]
[1646763380525,0.95453,2621.5,2621.3,0.00430575]
[1646763380724,0.95453,2621.5,2620.5,0.56584016]
[1646763382424,0.9544197,2621.9,2620.7,0.9544]
[1646763382425,0.92649902,2621.9,2620.7,0.9544]
[1646763382625,0.92649902,2622.0,2620.8,0.3]
[1646763382881,0.92735781,2622.2,2620.9,3.468]
[1646763383083,0.01268284,2623.0,2621.1,3.3816]
[1646763383084,0.92735781,2622.7,2621.1,3.3816]
[1646763383279,0.92735781,2622.9,2621.6,11.63]
[1646763383481,7.80583671,2623.1,2621.9,12.58368]
[1646763383482,0.92735781,2623.0,2621.9,12.58368]
[1646763383682,1.30885781,2623.1,2621.9,12.58368]
[1646763383881,0.92735781,2623.1,2621.9,17.38368]
[1646763384083,0.92735781,2623.1,2621.9,4.8]
[1646763384282,0.92735781,2623.0,2621.9,4.8]
[1646763384481,0.92735781,2623.1,2622.0,11.63]
[1646763384688,0.92735781,2623.1,2621.9,4.8]
[1646763384885,0.0022682,2622.4,2622.0,1.0]
[1646763385087,0.0022682,2622.4,2622.0,1.9075]
[1646763385385,0.0022682,2622.4,2622.0,2.2075]
[1646763385785,0.00275431,2622.3,2622.0,2.2075]
[1646763387019,0.00550857,2622.3,2622.0,2.2075]
[1646763387222,0.00275426,2622.3,2622.0,1.9075]
[1646763388827,0.00275426,2622.3,2622.0,2.2075]
[1646763389425,0.00213714,2622.3,2622.0,2.2075]
[1646763390577,0.00854746,2622.7,2622.0,2.2075]
[1646763390578,0.00258206,2622.7,2622.0,2.2075]
[1646763390777,0.92993987,2622.7,2622.0,1.9075]
[1646763390975,0.92993987,2622.7,2621.7,0.95399]
[1646763391180,0.92993987,2622.7,2621.3,1.7637235]
[1646763391181,0.3816,2622.5,2621.3,1.7637235]
[1646763391375,1.30895781,2622.5,2621.3,1.7637235]
[1646763391578,1.30895781,2622.5,2621.3,0.5611235]
[1646763391974,1.30895781,2622.4,2621.3,0.5611235]
[1646763392176,0.95414,2622.3,2621.3,0.5611235]
[1646763392575,0.95414,2622.3,2621.3,0.8611235]
[1646763392976,0.95627686,2622.3,2621.3,0.8658181]
[1646763393177,1.88363467,2622.3,2621.3,0.5658181]
[1646763393378,0.92735781,2622.0,2621.3,0.5658181]
[1646763393578,0.95441,2621.8,2621.3,0.5658181]
[1646763393781,0.8496,2622.1,2621.4,3.5]
[1646763393782,0.92735781,2622.1,2621.4,3.5]
[1646763393978,0.92735781,2622.2,2621.3,0.5658181]
[1646763394220,0.92949467,2622.3,2621.3,0.5658181]
[1646763394424,0.92949467,2622.3,2621.3,0.56596095]
[1646763394425,0.92735781,2621.9,2621.3,0.56596095]
[1646763394621,1.88169781,2621.8,2621.3,0.56596095]
[1646763394820,1.88169781,2621.8,2621.4,0.0035519]